Cogmind - Beta 9.6 @@@ ROGUE MODE // 2020.08.26 @ 23:03:35 Player: Cracklepappy Result: Self-destructed Performance ------------- Evolutions (3) 1500 Regions Visited (8) 1600 Robots Destroyed (71) 355 Value Destroyed (1798) 1798 Prototype IDs (26) 520 Alien Tech Used (0) 0 Bonus (360) 360 TOTAL SCORE: 6133 Bonus ------- Follower Combat Kills 60 Aligned with FarCom 300 Cogmind --------- Core Integrity 585/700 Matter 30/300 Energy 150/150 System Corruption 0% Temperature Cool (290) Movement Rolling (160) Ox7 Location -7/Factory Parts ------- > --- POWER (1) -------- Light Angular Momentum Engine > --- PROPULSION (3) --- Armored Wheel Armored Wheel > --- UTILITY (5) ------ Improved Heat Sink Humpback Humpback > --- WEAPON (4) ------- XL Autogun Array > --- INVENTORY (44) --- Light Treads Light Treads Light Treads Light Treads Light Treads Light Treads Potential Leg Potential Leg Combat Airjet Combat Airjet Combat Airjet Improved Heat Sink Improved Heat Sink Large Storage Unit Large Storage Unit High-capacity Storage Unit High-capacity Storage Unit High-capacity Storage Unit High-capacity Storage Unit Humpback Humpback High-capacity Battery (400) High-capacity Matter Pod (200) Structural Scanner Improved Sensor Array Improved Signal Interpreter Advanced Terrain Scanner Targeting Computer Medium Armor Plating Medium Armor Plating Improved Light Armor Plating Shield Generator Guided Plasma Cannon Chainsword Greatsword Greatsword Peak State ------------ > --- POWER ------------ Light Angular Momentum Engine > --- PROPULSION ------- Wheel Armored Wheel Armored Wheel > --- UTILITY ---------- Improved Heat Sink Humpback Humpback > --- WEAPON ----------- XL Autogun Array > --- INVENTORY -------- Light Treads Light Treads Light Treads Light Treads Light Treads Light Treads Potential Leg Potential Leg Combat Airjet Combat Airjet Combat Airjet Improved Heat Sink Improved Heat Sink Large Storage Unit Large Storage Unit High-capacity Storage Unit High-capacity Storage Unit High-capacity Storage Unit High-capacity Storage Unit Humpback Humpback High-capacity Battery High-capacity Matter Pod Structural Scanner Improved Sensor Array Improved Signal Interpreter Advanced Terrain Scanner Targeting Computer Medium Armor Plating Medium Armor Plating Improved Light Armor Plating Shield Generator Shock Rifle Heavy Laser Guided Plasma Cannon Chainsword Greatsword [Rating: 63] Favorites ----------- Power Ion Engine Engine Ion Engine Power Core Light Nuclear Core Propulsion Light Treads Treads Light Treads Leg Aluminum Leg Wheel Armored Wheel Utility High-capacity Storage Unit Device Improved Heat Sink Storage High-capacity Storage Unit Protection Medium Armor Plating Weapon Light Assault Rifle Energy Gun Spread Laser Ballistic Gun Light Assault Rifle Launcher Rocket Launcher Special Weapon Mining Laser Slashing Weapon Greatsword Build | -11 -10 -10 -9 -9 -9 -8 -8 -7 ------- Run | Scr Mat Min Mat Min Exi Min Mat Fac Slots Evolved 6 | . . . 2 . . . 2 2 Power . | . . . . . . . . . Propulsion 1 | . . . . . . . 1 . Utility 3 | . . . 2 . . . 1 . Weapon 2 | . . . . . . . . 2 Parts Attached 72 | 7 14 12 10 4 4 5 12 4 Power 7 | 1 1 1 . 1 . . 3 . Engine 5 | 1 1 1 . 1 . . 1 . Core 2 | . . . . . . . 2 . Reactor . | . . . . . . . . . Propulsion 16 | 2 2 5 2 1 2 . 2 . Treads 4 | . . . 2 1 . . 1 . Leg 7 | 2 1 4 . . . . . . Wheel 5 | . 1 1 . . 2 . 1 . Hover . | . . . . . . . . . Flight . | . . . . . . . . . Utility 15 | 1 5 . 4 1 2 . 2 . Device 2 | . . . 1 . . . 1 . Storage 9 | 1 5 . 1 . 2 . . . Processor . | . . . . . . . . . Hackware . | . . . . . . . . . Protection 4 | . . . 2 1 . . 1 . Artifact . | . . . . . . . . . Weapon 34 | 3 6 6 4 1 . 5 5 4 Energy Gun 17 | 1 2 5 2 . . 2 3 2 Energy Cannon . | . . . . . . . . . Ballistic Gun 14 | 2 4 1 2 . . 2 1 2 Ballistic Cannon . | . . . . . . . . . Launcher 1 | . . . . 1 . . . . Special Weapon 1 | . . . . . . 1 . . Impact Weapon . | . . . . . . . . . Slashing Weapon 1 | . . . . . . . 1 . Piercing Weapon . | . . . . . . . . . Special Melee Weapon . | . . . . . . . . . Unidentified Prototypes . | . . . . . . . . . Parts Lost 26 | . 5 7 . 3 . 2 7 2 Power 6 | . 1 1 . 1 . . 3 . Propulsion 6 | . 2 2 . 1 . . . 1 Utility . | . . . . . . . . . Weapon 14 | . 2 4 . 1 . 2 4 1 Highest Loss Streak 5 | . 2 5 . 3 . 2 4 2 Average Slot Usage (%) 86 | . 98 95 98 93 72 76 75 61 Engine 10 | . 13 12 11 10 11 11 4 7 Treads 9 | . . . 21 21 22 . . . Leg 6 | . 24 21 . . . . . . Wheel 7 | . 3 5 . . . 22 27 19 Device 1 | . . . 4 . . . 5 7 Storage 26 | . 27 28 31 33 23 22 18 15 Protection 3 | . . . 7 9 4 . 3 . Energy Gun 5 | . 2 22 8 . . 4 4 9 Ballistic Gun 10 | . 25 3 12 13 . 5 8 1 Launcher 3 | . . . . 4 11 7 . . Naked Turns . | . . . . . . . . . Heaviest Build 185 | 11 75 75 114 114 167 170 175 185 Greatest Support 40 | 20 20 20 40 40 40 24 34 34 Greatest Overweight (x) 7 | 1 7 7 3 5 6 7 5 7 Average Overweight (x) 3 | . 2 5 2 2 3 6 4 5 Largest Inventory Capacity 44 | 6 20 20 28 28 44 44 44 44 Average Capacity 30 | 5 16 20 26 28 38 44 44 44 Most Carried 44 | 6 20 20 28 28 44 44 44 44 Average Carried 29 | 4 15 19 25 27 34 43 42 43 Final Capacity 44 | 6 20 20 28 28 44 44 44 44 Final Carried 44 | 6 20 20 28 28 44 44 44 40 Class Distribution -------------------- 87% | Hauler-Mutant 12% | Mutant Dominant Class ---------------- Mutant | -10/Materials Hauler-Mutant | -10/Mines Hauler-Mutant | -9/Materials Hauler-Mutant | -9/Mines Hauler-Mutant | -9/Exiles Hauler-Mutant | -8/Mines Hauler-Mutant | -8/Materials Hauler-Mutant | -7/Factory Resources | -11 -10 -10 -9 -9 -9 -8 -8 -7 ----------- Run | Scr Mat Min Mat Min Exi Min Mat Fac Matter Collected 1434 | 249 309 105 210 164 20 181 196 . Remotely . | . . . . . . . . . Salvage Created 2278 | 105 413 184 474 18 . 192 555 337 Parts 134 | 6 29 19 33 . . 11 24 12 Haulers Intercepted 3 | . 1 . 2 . . . . . Recyclers Shooed 3 | . 2 . . . . . 1 . Parts Field Recycled . | . . . . . . . . . Retrieved Matter . | . . . . . . . . . Parts Self-Destructed . | . . . . . . . . . Prevented . | . . . . . . . . . Kills | -11 -10 -10 -9 -9 -9 -8 -8 -7 ------- Run | Scr Mat Min Mat Min Exi Min Mat Fac Combat Hostiles Destroyed 62 | . 14 10 8 7 . 7 10 6 Melee 2 | . . . . . . . 2 . Guns 54 | . 14 10 8 1 . 7 8 6 AOE 6 | . . . . 6 . . . . Classes Destroyed 12 | 2 4 . 2 1 . 1 1 1 Worker 2 | . 1 . 1 . . . . . Tunneler 2 | 1 . . . . . . 1 . Hauler 3 | . 1 . 2 . . . . . Recycler 1 | 1 . . . . . . . . Watcher 1 | . . . 1 . . . . . Swarmer 19 | . 9 6 . . . 4 . . Grunt 26 | . 5 4 4 . . 2 7 4 Brawler 2 | . . . . . . 1 . 1 Duelist 1 | . . . . . . . . 1 Sentry 6 | . . . 4 . . . 2 . Hunter 1 | . . . . . . . 1 . Assembled 7 | . . . . 7 . . . . Best Kill Streak 6 | 2 3 3 2 6 . 4 2 4 Combat Bots Only 6 | . 3 3 2 6 . 4 2 4 Max Kills in Single Turn 2 | 1 1 1 1 2 . 1 1 1 Gunslinging . | . . . . . . . . . Exploded 2 | . . . . 2 . . . . Melee 1 | . . . . . . . 1 . Uniques/NPCs Destroyed . | . . . . . . . . . Combat | -11 -10 -10 -9 -9 -9 -8 -8 -7 -------- Run | Scr Mat Min Mat Min Exi Min Mat Fac Damage Taken 4257 | . 813 676 297 636 . 282 1114 439 Core 653 | . 145 84 24 100 . 10 175 115 Absorbed by Shields . | . . . . . . . . . Core Remaining (%) 60 | 100 . 8 . . . 66 68 . Volleys Fired 278 | 7 84 32 29 14 . 27 49 36 Largest 2 | 2 2 2 2 2 . 2 2 2 Hottest 130 | 40 130 130 105 46 . 100 121 119 Shots Fired 470 | 14 163 57 58 16 . 42 77 43 Gun 449 | 14 163 57 58 5 . 32 77 43 Cannon . | . . . . . . . . . Launcher 14 | . . . . 11 . 3 . . Special 7 | . . . . . . 7 . . Kinetic 295 | 14 159 10 32 5 . 23 36 16 Thermal 144 | . 4 47 26 . . 16 31 20 Explosive 14 | . . . . 11 . 3 . . Electromagnetic 17 | . . . . . . . 10 7 Robot Hit Streak 13 | 5 7 11 13 7 . 10 10 13 Robot Miss Streak 7 | 2 4 7 5 2 . 2 4 5 Penetration Max . | . . . . . . . . . Secondary Targets 6 | . 1 3 . . . 1 1 . Max Gunslinging Chain 1 | . 1 1 . . . 1 1 . Shots Hit Robots 306 | 10 81 51 42 9 . 27 50 36 Core Hits 174 | 4 32 38 31 15 . 13 26 15 Critical Hits 2 | . . 1 1 . . . . . Critical Kills 1 | . . . 1 . . . . . Critical Parts Destroyed 1 | . . 1 . . . . . . Melee Attacks 4 | . . . . . . . 4 . Impact . | . . . . . . . . . Slashing 4 | . . . . . . . 4 . Piercing . | . . . . . . . . . Sneak Attacks . | . . . . . . . . . Combat Hostiles . | . . . . . . . . . Follow-up Attacks . | . . . . . . . . . Damage Inflicted 4747 | 78 665 381 551 642 . 299 859 1272 Guns 4037 | 78 665 381 537 59 . 299 746 1272 Cannons . | . . . . . . . . . Explosions 583 | . . . . 583 . . . . Melee 113 | . . . . . . . 113 . Ramming 14 | . . . 14 . . . . . Kinetic 2504 | 78 624 33 311 59 . 216 289 894 Thermal 1335 | . 41 348 226 . . 83 329 308 Explosive 583 | . . . . 583 . . . . Electromagnetic 198 | . . . . . . . 128 70 Impact . | . . . . . . . . . Slashing 113 | . . . . . . . 113 . Piercing . | . . . . . . . . . Highest Corruption . | . . . . . . . . . Average Corruption . | . . . . . . . . . Corruption Purged . | . . . . . . . . . Overload Shots . | . . . . . . . . . Overflow Damage 38 | . . . . 38 . . . . Projectiles . | . . . . . . . . . Explosions 38 | . . . . 38 . . . . Melee . | . . . . . . . . . Knockbacks . | . . . . . . . . . Impact . | . . . . . . . . . Kinetic . | . . . . . . . . . Secondary . | . . . . . . . . . Self-Inflicted Damage 95 | . . . . 95 . . . . Shots 2 | . . . . 2 . . . . Rammed . | . . . . . . . . . Targets Rammed 1 | . . . 1 . . . . . Kicked . | . . . . . . . . . Crushed 1 | . . . 1 . . . . . Highest Temperature 461 | . 69 461 15 . . 237 209 290 Average Temperature 116 | . 17 191 5 . . 70 136 61 Received Heat Transfer 1407 | . 150 300 102 . . 108 522 225 Effects 9 | . . 9 . . . . . . Shutdowns 1 | . . 1 . . . . . . Energy Bleed 2 | . . 2 . . . . . . Interference 2 | . . 2 . . . . . . Matter Decay 1 | . . 1 . . . . . . Damage (minor) 3 | . . 3 . . . . . . Siege Activations . | . . . . . . . . . Robots Corrupted . | . . . . . . . . . Combat Hostiles . | . . . . . . . . . Parts Fried . | . . . . . . . . . Impact Corruptions . | . . . . . . . . . Robots Melted . | . . . . . . . . . Combat Hostiles . | . . . . . . . . . Parts Melted 3 | . . 1 . . . . 1 1 Heat Transferred 2366 | . 50 425 385 . . 100 814 592 Parts Sabotaged . | . . . . . . . . . Parts Stolen . | . . . . . . . . . Parts Stripped . | . . . . . . . . . Power Chain Reactions . | . . . . . . . . . Missiles Intercepted . | . . . . . . . . . Alert | -11 -10 -10 -9 -9 -9 -8 -8 -7 ------- Run | Scr Mat Min Mat Min Exi Min Mat Fac Peak Influence 200 | 10 200 193 147 63 . 90 157 160 Average Influence 42 | 4 41 77 46 18 . 22 62 23 Maximum Alert Level 1 | . 1 . . . . . . . Low Security (%) 98 | 100 92 100 100 100 . 100 100 100 Level 1 1 | . 7 . . . . . . . Level 2 . | . . . . . . . . . Level 3 . | . . . . . . . . . Level 4 . | . . . . . . . . . Level 5 . | . . . . . . . . . High Security . | . . . . . . . . . Max Security . | . . . . . . . . . Squads Dispatched 8 | . 2 . 4 . . 1 1 . Investigation 4 | . 1 . 2 . . . 1 . Extermination . | . . . . . . . . . Reinforcement 4 | . 1 . 2 . . 1 . . Assault . | . . . . . . . . . Garrison . | . . . . . . . . . Intercept . | . . . . . . . . . Construction Impeded 1 | . . . . . . 1 . . Haulers Reinforced . | . . . . . . . . . Stealth | -11 -10 -10 -9 -9 -9 -8 -8 -7 --------- Run | Scr Mat Min Mat Min Exi Min Mat Fac Distress Signals 6 | . 4 . 2 . . . . . Communications Jammed . | . . . . . . . . . Distress Signals . | . . . . . . . . . Times Spotted 93 | . 27 11 16 13 . 7 11 8 Peak Tracking Total 10 | . 6 3 2 10 . 4 3 4 Tactical Retreats 4 | . 1 1 . 1 . . 1 . Traps | -11 -10 -10 -9 -9 -9 -8 -8 -7 ------- Run | Scr Mat Min Mat Min Exi Min Mat Fac Traps Triggered 2 | . . . 1 . . . 1 . Indirectly . | . . . . . . . . . Trap Hack Attempts . | . . . . . . . . . Triggered . | . . . . . . . . . Disarmed . | . . . . . . . . . Reprogrammed . | . . . . . . . . . Reused . | . . . . . . . . . Traps Extracted . | . . . . . . . . . Installed . | . . . . . . . . . Triggered . | . . . . . . . . . Machines | -11 -10 -10 -9 -9 -9 -8 -8 -7 ---------- Run | Scr Mat Min Mat Min Exi Min Mat Fac Machines Disabled 1 | . . . . . . . . 1 Max in Single Turn 1 | . . . . . . . . 1 Machines Sabotaged . | . . . . . . . . . Garrisons Compromised . | . . . . . . . . . Overloaded Fab Kills . | . . . . . . . . . Fab Network Shutdowns . | . . . . . . . . . Hacking | -11 -10 -10 -9 -9 -9 -8 -8 -7 --------- Run | Scr Mat Min Mat Min Exi Min Mat Fac Machines Accessed 14 | . 7 . 4 . 1 . 2 . Terminals 11 | . 6 . 3 . . . 2 . Fabricators . | . . . . . . . . . Repair Stations . | . . . . . . . . . Recycling Units 2 | . 1 . 1 . . . . . Scanalyzers . | . . . . . . . . . Garrison Access . | . . . . . . . . . Total Hacks 29 | . 14 . 9 . 1 . 5 . Successful 14 | . 6 . 4 . 1 . 3 . Failed 15 | . 8 . 5 . . . 2 . Catastrophic 1 | . 1 . . . . . . . Database Lockouts . | . . . . . . . . . Manual 13 | . 6 . 3 . 1 . 3 . Terminals 26 | . 13 . 8 . . . 5 . Fabricators . | . . . . . . . . . Repair Stations . | . . . . . . . . . Recycling Units 2 | . 1 . 1 . . . . . Scanalyzers . | . . . . . . . . . Garrison Access . | . . . . . . . . . Terminal Hacks 12 | . 5 . 3 . 1 . 3 . Part Schematic 1 | . 1 . . . . . . . Prototype ID Bank 2 | . 1 . 1 . . . . . Branch Access Points 1 | . 1 . . . . . . . Emergency Access Points 1 | . 1 . . . . . . . Alert Level 1 | . . . . . . . 1 . Unreport Threat 2 | . . . 1 . . . 1 . Locate Traps 1 | . 1 . . . . . . . Zone Layout 2 | . . . 1 . . . 1 . EX-Prototype ID Bank 1 | . . . . . 1 . . . Fabricator Hacks . | . . . . . . . . . Repair Station Hacks . | . . . . . . . . . Recycling Unit Hacks . | . . . . . . . . . Scanalyzer . | . . . . . . . . . Garrison Access Hacks . | . . . . . . . . . Unauthorized Hacks 2 | . 1 . 1 . . . . . Terminals . | . . . . . . . . . Fabricators . | . . . . . . . . . Repair Stations . | . . . . . . . . . Recycling Units 2 | . 1 . 1 . . . . . Tunnel 2 | . 1 . 1 . . . . . Scanalyzers . | . . . . . . . . . Garrison Access . | . . . . . . . . . Data Cores Recovered . | . . . . . . . . . Used . | . . . . . . . . . Hacking Detections 10 | . 6 . 3 . . . 1 . Full Trace Events . | . . . . . . . . . Feedback Events . | . . . . . . . . . Feedback Blocked . | . . . . . . . . . Robot Schematics Acquired . | . . . . . . . . . Robots Built . | . . . . . . . . . Matter . | . . . . . . . . . Time . | . . . . . . . . . Total Robot Build Rating . | . . . . . . . . . Part Schematics Acquired 1 | . 1 . . . . . . . Parts Built . | . . . . . . . . . Matter . | . . . . . . . . . Time . | . . . . . . . . . Total Part Build Rating . | . . . . . . . . . Parts Repaired . | . . . . . . . . . Time . | . . . . . . . . . Parts Recycled . | . . . . . . . . . Recycled Matter . | . . . . . . . . . Retrieved Matter . | . . . . . . . . . Retrieved Components . | . . . . . . . . . Parts Scanalyzed . | . . . . . . . . . Part Schematics Acquired . | . . . . . . . . . Parts Damaged . | . . . . . . . . . Bothacking | -11 -10 -10 -9 -9 -9 -8 -8 -7 ------------ Run | Scr Mat Min Mat Min Exi Min Mat Fac Used RIF Installer . | . . . . . . . . . Robots Hacked . | . . . . . . . . . Non-combat . | . . . . . . . . . Combat . | . . . . . . . . . Robot Hacks Applied . | . . . . . . . . . Relay Couplers Released . | . . . . . . . . . Robots Rewired . | . . . . . . . . . Allies Hacked . | . . . . . . . . . Hacks Repelled . | . . . . . . . . . Allies | -11 -10 -10 -9 -9 -9 -8 -8 -7 -------- Run | Scr Mat Min Mat Min Exi Min Mat Fac Total Allies 5 | . . . . 5 . . . . Largest Group 3 | . . . . 3 . . . . Highest-Rated Group 61 | . . . . 61 . . . . Highest-Rated Ally 31 | . . . . 31 . . . . Total Orders . | . . . . . . . . . Ally Attacks 33 | . . . . 33 . . . . Total Damage 403 | . . . . 403 . . . . Kills 2 | . . . . 2 . . . . Allies Corrupted . | . . . . . . . . . Allies Melted . | . . . . . . . . . Intel | -11 -10 -10 -9 -9 -9 -8 -8 -7 ------- Run | Scr Mat Min Mat Min Exi Min Mat Fac Robot Analysis Total . | . . . . . . . . . Derelict Logs Recovered 2 | . . 1 . 1 . . . . Drone Launches . | . . . . . . . . . Drone Recoveries . | . . . . . . . . . Exploration | -11 -10 -10 -9 -9 -9 -8 -8 -7 ------------- Run | Scr Mat Min Mat Min Exi Min Mat Fac Turns Passed 7444 | 141 1195 956 962 1083 1149 997 845 116 Spaces Moved 3515 | 91 609 435 386 484 484 496 497 33 Core 8 | 8 . . . . . . . . Treads 1334 | . . . 367 484 483 . . . Legs 814 | 83 481 231 19 . . . . . Wheels 1359 | . 128 204 . . 1 496 497 33 Hover . | . . . . . . . . . Flight . | . . . . . . . . . Fastest Speed 50 | 50 120 110 180 200 150 150 126 136 Average Speed 174 | 115 146 187 200 201 227 153 132 136 Slowest Speed 330 | 150 210 330 220 260 240 160 136 160 Overloaded Moves . | . . . . . . . . . Propulsion Burnouts . | . . . . . . . . . Robots Hopped . | . . . . . . . . . Cave-ins Triggered . | . . . . . . . . . Exploration Rate (%) 57 | 5 80 84 43 94 78 91 35 3 Regions Visited 8 Branch Regions 4 Pre-discovered Areas 3 | . 1 . 1 1 . . . . Known Exits Taken 1 | . 1 . . . . . . . Unknown Exits Taken 7 | 1 . 1 1 1 1 1 1 . Scrap Searched 3 | . . 1 . 1 . 1 . . Spaces Dug 30 | . . . . . . 30 . . Terrain Destroyed 129 | . . . . 86 . 39 . 4 Melee . | . . . . . . . . . Projectile 11 | . . . . . . 7 . 4 AOE 118 | . . . . 86 . 32 . . Actions | -11 -10 -10 -9 -9 -9 -8 -8 -7 --------- Run | Scr Mat Min Mat Min Exi Min Mat Fac Total 4400 | 112 782 522 517 578 536 675 600 78 Wait 384 | 2 48 32 67 67 . 145 23 . Move 3506 | 90 608 434 385 482 483 495 496 33 Hop . | . . . . . . . . . Pick Up 108 | 6 20 5 17 7 38 3 10 2 Fast Attach 21 | 6 2 6 2 . 2 . 3 . Attach 27 | . 4 4 3 3 . 3 6 4 Detach 1 | . . 1 . . . . . . Swap 24 | 1 8 2 5 1 2 2 3 . Drop 46 | . 8 6 8 4 11 . 6 3 Fire 278 | 7 84 32 29 14 . 27 49 36 Melee 4 | . . . . . . . 4 . Ram . | . . . . . . . . . Kick . | . . . . . . . . . Crush 1 | . . . 1 . . . . . Escape Stasis . | . . . . . . . . . Rewire . | . . . . . . . . . Trap . | . . . . . . . . . Miscellaneous . | . . . . . . . . . Route ------- -11/Scrapyard -10/Materials (discovered 3 exits: *Mat x2 / *Min) -10/Mines -9/Materials (discovered 2 exits: *Mat / [*Min]) -9/Mines (discovered 3 exits: *Mat x2 / *Exi) -9/Exiles -8/Mines (discovered 2 exits: *Mat x2) -8/Materials -7/Factory History --------- Turn | Location | Event 24 | -11/Scrapyard | Discovered new exit (range 15) 142 | -11/Scrapyard | Entered Materials 212 | -10/Materials | Identified exit to Mines 334 | -10/Materials | Build established: Mutant 385 | -10/Materials | Discovered new exit (range 15) 1083 | -10/Materials | Discovered new exit (range 15) 1196 | -10/Materials | Core integrity fell below 50% 1198 | -10/Materials | Build established: Hauler-Mutant 1337 | -10/Materials | Entered Mines 1457 | -10/Mines | Learned Materials garrison access intel 1494 | -10/Mines | Received a Rocket Launcher from a helpful Derelict 1949 | -10/Mines | Discovered new exit (range 15) 2152 | -10/Mines | Core integrity fell below 20% 2210 | -10/Mines | Lost 5 parts (1p1n3w) 2293 | -10/Mines | Entered Materials 2293 | -9/Materials | Evolved 2 slots: Utility x2 2780 | -9/Materials | Discovered new exit (range 5) 3148 | -9/Materials | Discovered new exit (range 15) 3255 | -9/Materials | Entered Mines 3269 | -9/Mines | Assisted by bots powering up and referring to "LRC-V3" 3536 | -9/Mines | Discovered new exit (range 16) 3883 | -9/Mines | Assembled infested the area 3886 | -9/Mines | Learned location of Zion (-7) 3974 | -9/Mines | Lost 3 parts (1p1n1w) 4074 | -9/Mines | Discovered new exit (range 6) 4328 | -9/Mines | Deemed a non-threat by the Exiles lab entrance 4330 | -9/Mines | Discovered new exit (range 5) 4338 | -9/Mines | Entered Exiles 4384 | -9/Exiles | Met 8R-AWN 4416 | -9/Exiles | Met EX-HEX 4614 | -9/Exiles | Met EX-DEC 4657 | -9/Exiles | Visited The Gauntlet 4909 | -9/Exiles | Discovered new exit (range 12) 5134 | -9/Exiles | Met EX-BIN 5163 | -9/Exiles | Aligned with FarCom system 5166 | -9/Exiles | Given EX-Vault access code 5226 | -9/Exiles | Opened EX-Vault 5245 | -9/Exiles | Found Potential Leg 5248 | -9/Exiles | Found Potential Leg 5252 | -9/Exiles | Found Gui. Plasma Cannon 5257 | -9/Exiles | Found XL Autogun Array 5314 | -9/Exiles | Warned to stay clear of 0b10 Research branches 5487 | -9/Exiles | Stole three prototypes: Potential Leg, Gui. Plasma Cannon, XL Autogun Array 5487 | -9/Exiles | Entered Mines 6358 | -8/Mines | Discovered new exit (range 13) 6409 | -8/Mines | Discovered new exit (range 14) 6484 | -8/Mines | Entered Materials 6484 | -8/Materials | Evolved 2 slots: Propulsion x1, Utility x1 6485 | -8/Materials | Loaded intel: 1 garrison access location 6910 | -8/Materials | Lost 4 parts (2p2w) 7293 | -8/Materials | Discovered new exit (range 13) 7329 | -8/Materials | Entered Factory 7329 | -7/Factory | Evolved 2 slots: Weapon x2 7331 | -7/Factory | FarCom data flow suspended 7445 | -7/Factory | Self-destructed Last Messages --------------- 07400_ Shock Rifle destroyed. 07400_ G-47 Trooper destroyed. 07420_ Knocked back. 07423_ B-48 Gladiator heat damages Lgt. Treads, Rnf. Deuterium Engine, Mace. 07424_ Knocked back. 07426_ Dropped Hvy. Laser. 07428_ Destroyed Lgt. Treads. 07428_ Destroyed Mace. 07431_ B-48 Gladiator heat short circuits Broken Rnf. Deuterium Engine. 07431_ G-47 Trooper destroyed. 07432_ Lgt. Treads melted. 07432_ B-48 Gladiator destroyed. 07436_ Matter Pump disabled. 07436_ G-47 Trooper destroyed. 07437_ Destroyed Particle Gun. 07441_ Destroyed Lgt. Nuclear Core. 07443_ K-01 Serf collects debris. 07444_ L-41 Fighter destroyed. 07444_ Destroyed Imp. Heat Sink. Map ----- +----------------------------------------------------+ | ???????????????# #??????????????? | | ???????????????# #??????????????? | | ???????????????# #??????????????? | | ???????????????# #??????????????? | | ???????????????# #??????????????? | | ???????????????# #??????????????? | | ???????######### #??????????????? | | ??#??? # #??????????????? | | ??# ???"" """ # #??????????????? | | ??# """ """ # #??????????????? | | ??# """ """ # #??????????????? | | ??# # #??????????????? | | ??# """ """ + #??????????????? | | ??# """ """ # +??????????????? | | ??# """ """ # #??????????????? | | ??# # #??????????????? | | ??# # #??????????????? | | ??# #######??????????????? | | ??# #????????????????????? | | ??###+##+#######################????? | | ???????# # === # = ]#????? | | ???????# # == # """ #????? | | ???????# # == # """ !! #????? | | ???????# #?? uu ; """ !! # #??? | | ???????# #####+#####[% ! ; #??? | | ???????# +% [@ #????? | | ???????## #####;= = ! #????? | | ????????# #???#####!!#######????? | | ????? ????? %*g% ?????????? | | ????# ?? /= ???????? | | ????# !!! ! ??????? | | ????# !! ? ????? | | ????# !! %%" ???? | | ??? ### = """ ?######??? | | ??### ??# =%* """ ?????????? | | ????#???# ! ?????????? | | ????????# ### k ?? #????????? | | ???????? #??##### ??? #????????? | | ????????### ##??????????? #????????? | | ??????????# #???????????? ????????? | | ??????????# ?????????????? ?????????? | | ??????????? ????????????????????????? | | ????????????????????????????????????? | | ????????????????????????????????????? | | ????????????????????????????????????? | | ????????????????????????????????????? | | ????????????????????????????????????? | | ????????????????????????????????????? | | ????????????????????????????????????? | | ????????????????????????????????????? | +----------------------------------------------------+ Best States ------------- Heat Dissipation 48 Energy Generation 18 Energy Capacity 250 Matter Stores 300 Matter Capacity 300 Sight Range 16 Terrain Scan Density 10 Armor Coverage 225 Evasion (%) 40 Recoil Reduction 2 Item Schematics ----------------- Hcp. Storage Unit | -10/Materials | Hacked Robot Schematics ------------------ None Fabricated ------------ Nothing Alien Tech Used ----------------- None Achievements -------------- None Challenges ------------ None Game ------ Seed WaveLinkedLeg Manual? 0 Play Time 00:55:20 Cumulative 139.9 hours Start 2020.08.26 @ 21:42:42 End 2020.08.26 @ 23:03:35 Sessions 1 Manual Loads 0 Difficulty Rogue Special Mode None Game No. 169 Rogue 169 Adventurer 0 Explorer 0 Win Type - Total 2 Types 2/0/0/0/0/0/0 Lore% 51 Gallery% 68 Achievement% 47 Wizard Run 0 Options --------- ASCII 0 Keyboard 0 Movement Numpad Keybinds 0 Fullscreen 2 Font 24/Smallcaps Map View 76x50 Tactical HUD 1 Map Filters NONE Filters NONE Steam 1 RUN: ee80f27b-ebb8-4b37-8524-17cf160f749d